bitfinex-derivatives/quotes_SOLF0:USTF0_20250630
["timestamp","ask_amount","ask_price","bid_price","bid_amount"]
[1751297432036,574.8,156.88,156.63,26.24568121]
[1751297432345,28.30918121,156.87,156.63,26.24568121]
[1751297432637,4.4697,156.99,156.75,26.24568121]
[1751297432831,2.0635,156.98,156.75,26.24568121]
[1751297433338,2.0635,156.98,156.76,26.24568121]
[1751297433539,2.0635,156.98,156.8,26.24568121]
[1751297433835,2.0635,156.98,156.74,574.8]
[1751297434139,26.24568121,156.96,156.63,2574.46]
[1751297434338,8.5715,156.97,156.67,26.24568121]
[1751297434535,8.5715,156.97,156.71,26.24568121]
[1751297434736,26.24568121,156.96,156.71,26.24568121]
[1751297435342,2.0605,156.97,156.71,26.24568121]
[1751297435643,26.24568121,156.94,156.71,26.24568121]
[1751297435840,124.0,157.23,156.83,26.24568121]
[1751297436040,124.0,157.23,156.72,2553.14]
[1751297436041,6.3335,157.21,156.87,26.24568121]
[1751297436241,6.3335,157.21,156.88,636.46]
[1751297436538,26.24568121,157.19,156.94,26.24568121]
[1751297436732,574.46,157.18,156.89,574.46]
[1751297437036,26.24568121,157.11,156.89,574.46]
[1751297437232,574.46,157.18,156.64,26.24568121]
[1751297437233,26.24568121,157.08,156.86,26.24568121]
[1751297437439,26.24568121,157.08,156.8,817.02]
[1751297437638,600.28568121,157.08,156.8,817.02]
[1751297437835,26.24568121,157.07,156.8,817.02]
[1751297438039,574.04,157.08,156.82,26.24568121]
[1751297438440,26.24568121,157.06,156.82,26.24568121]
[1751297438641,574.04,157.08,156.8,574.46]
[1751297439042,26.24568121,157.06,156.8,574.46]
[1751297439237,26.24568121,157.02,156.8,574.46]
[1751297439444,580.551,157.08,156.72,0.9351]
[1751297439445,26.24568121,156.94,156.72,600.28568121]
[1751297439640,574.04,156.96,156.72,574.04]
[1751297439836,574.04,156.99,156.76,26.24568121]
[1751297440040,574.04,156.99,156.8,26.24568121]
[1751297440239,2.2291,157.01,156.8,26.24568121]
[1751297441141,2.2109,157.05,156.84,26.24568121]
[1751297441445,2.2109,157.05,156.72,574.04]
[1751297441641,26.24568121,156.94,156.72,574.04]
[1751297441842,600.22568121,156.94,156.72,574.04]
[1751297442341,5.21602513,157.4,156.8,19.26]
[1751297442546,1.55121,157.1,156.93,19.8]
[1751297442843,30.60708121,157.28,156.94,613.04]
[1751297443042,4.3614,157.28,157.08,26.24568121]
[1751297443239,26.24568121,157.23,156.89,573.98]
[1751297443542,600.22568121,157.24,157.01,26.24568121]
[1751297443749,6.511,157.23,156.93,26.24568121]
[1751297444047,26.24568121,157.02,156.73,573.58]
[1751297444249,573.58,157.12,156.78,19.26]
[1751297444539,2549.32,157.24,156.73,573.58]
[1751297444540,4.3614,157.11,156.82,26.24568121]
[1751297444842,26.24568121,157.04,156.8,26.24568121]
[1751297445045,26.24568121,157.0,156.73,573.58]
[1751297445247,26.24568121,156.92,156.67,26.24568121]
[1751297445447,26.24568121,156.9,156.67,26.24568121]
[1751297445644,26.24568121,156.86,156.65,573.58]
[1751297445842,2.1765,156.91,156.42,26.24568121]
[1751297445843,6.511,156.84,156.55,573.58]
[1751297446044,26.24568121,156.74,156.53,573.58]
[1751297446344,26.24568121,156.76,156.53,573.58]
[1751297446537,573.58,156.82,156.44,62.0]
[1751297446538,26.24568121,156.73,156.46,573.78]
[1751297446741,26.24568121,156.63,156.35,573.78]
[1751297446950,26.24568121,156.46,156.21,26.24568121]
[1751297447140,26.24568121,156.41,156.21,26.24568121]
[1751297447345,26.24568121,156.41,156.17,26.24568121]
[1751297447545,2.1674,156.44,156.18,242.26]
[1751297447749,6.5036939,156.46,156.41,0.19193858]
[1751297447945,11.56953167,156.64,156.41,0.19193858]
[1751297448145,6.50051915,156.63,156.41,0.19193858]
[1751297448346,6.50051915,156.62,156.48,26.24568121]
[1751297448543,4.3441,156.72,156.41,0.19193858]
[1751297448544,6.50051915,156.7,156.53,26.24568121]
[1751297448743,12.88121915,156.69,156.56,26.24568121]
[1751297448948,6.50051915,156.68,156.49,573.78]
[1751297449144,26.24568121,156.79,156.5,242.26]
[1751297449345,6.50051915,156.78,156.64,26.24568121]
[1751297449544,6.50051915,156.89,156.65,816.04]
[1751297449744,2.2162,156.9,156.59,62.0]
[1751297449745,6.50051915,156.88,156.66,574.04]
[1751297449949,6.50051915,156.97,156.66,574.04]
[1751297450143,6.50051915,156.96,156.73,26.24568121]
[1751297450342,580.54051915,156.95,156.66,574.04]
[1751297450542,6.50051915,156.94,156.67,242.38]
[1751297450747,26.24568121,156.88,156.66,574.04]
[1751297450942,11.63445668,156.94,156.55,26.24568121]
[1751297450943,26.24568121,156.79,156.55,26.24568121]
[1751297451143,26.24568121,156.65,156.39,574.04]
[1751297451343,26.24568121,156.61,156.4,26.24568121]
[1751297451650,26.24568121,156.61,156.39,574.04]
[1751297451850,26.24568121,156.57,156.39,574.04]
[1751297452253,26.24568121,156.55,156.39,574.04]
[1751297452447,26.24568121,156.51,156.39,574.04]
[1751297452652,26.24568121,156.47,156.28,574.34]
[1751297452851,574.04,156.6,156.16,19.8]
[1751297452852,6.3911,156.43,156.34,6.3946]
[1751297453059,12.35457461,156.57,156.24,574.34]
[1751297453350,26.24568121,156.38,156.17,574.34]
[1751297453556,26.24568121,156.3,156.08,574.34]
[1751297453747,26.24568121,156.29,156.08,574.34]
[1751297453951,26.24568121,156.2,155.91,2552.62]
[1751297454150,2.24,156.36,155.92,574.34]
[1751297454151,26.24568121,156.19,155.92,574.34]
[1751297454457,26.24568121,156.12,155.92,574.34]
[1751297454649,2.1925,156.18,155.95,26.24568121]
[1751297454853,2.1925,156.18,155.92,574.34]
[1751297455052,26.24568121,156.16,155.92,574.34]
[1751297455250,6.37886956,156.15,155.95,26.24568121]
[1751297455455,26.24568121,156.06,155.84,574.34]
[1751297455652,26.24568121,155.98,155.75,600.58568121]
[1751297455847,576.4613,156.14,155.65,87.86266246]
[1751297455848,26.24568121,155.89,155.65,87.86266246]
[1751297456055,26.24568121,155.85,155.66,62.0]
[1751297456355,26.24568121,155.93,155.73,26.24568121]
[1751297456558,26.24568121,155.93,155.67,242.8]
[1751297456559,6.21955576,155.92,155.77,26.24568121]
[1751297456754,26.24568121,156.04,155.78,242.8]
[1751297457051,26.24568121,155.94,155.6,2555.7]
[1751297457249,26.24568121,155.94,155.71,26.24568121]
[1751297457457,6.4187,155.76,155.68,6.4217]
[1751297457650,26.24568121,155.82,155.61,575.02]
[1751297457847,5.21602513,155.88,155.64,26.24568121]
[1751297458054,6.19985861,155.88,155.79,6.4172]
[1751297458351,6.17174918,155.93,155.76,575.02]
[1751297458556,5.93848476,155.92,155.76,575.02]
[1751297458754,5.93848476,155.91,155.76,575.02]
[1751297458946,5.93848476,155.9,155.76,575.02]
[1751297459154,2.1686,155.97,155.76,575.02]
[1751297459656,26.24568121,155.96,155.76,575.02]
[1751297459850,26.24568121,155.92,155.76,575.02]
[1751297460049,26.24568121,155.88,155.68,819.0]
[1751297460254,26.24568121,155.69,155.46,26.24568121]
[1751297460553,26.24568121,155.69,155.55,6.427]
[1751297460752,575.86,155.76,155.45,575.86]
[1751297460958,26.24568121,155.67,155.45,575.86]
[1751297461255,26.24568121,155.84,155.64,26.24568121]
[1751297461457,9.20093294,155.94,155.76,26.24568121]
[1751297461649,2.2194,156.15,155.78,26.24568121]
[1751297461851,2.2194,156.15,155.9,26.24568121]
[1751297462047,2.2582,156.14,155.92,26.24568121]
[1751297462253,13.59150262,156.16,155.92,26.24568121]
[1751297462254,9.20093294,156.16,155.93,576.66]
[1751297462455,9.17994012,156.25,156.02,26.24568121]
[1751297462753,26.24568121,156.28,156.03,576.66]
[1751297463054,26.24568121,156.2,156.01,576.66]
[1751297463260,576.66,156.2,155.97,243.48]
[1751297463454,26.24568121,156.19,155.95,576.66]
[1751297463654,576.66,156.2,155.98,26.24568121]
[1751297463862,26.24568121,156.18,155.97,26.24568121]
[1751297464051,26.24568121,156.18,155.95,576.66]
[1751297464251,26.24568121,156.14,155.95,576.66]
[1751297464553,26.24568121,156.08,155.87,576.66]
[1751297464856,4.482,156.3,156.02,26.24568121]
[1751297465056,26.24568121,156.25,156.03,602.90568121]
[1751297465257,26.24568121,156.17,155.98,576.66]
[1751297465457,576.66,156.21,155.97,576.66]
[1751297465647,26.24568121,156.18,155.98,576.66]
[1751297465852,602.90568121,156.21,156.0,26.24568121]
[1751297466046,576.66,156.21,156.04,26.24568121]
[1751297466459,6.511,156.27,156.04,576.66]
[1751297466649,4.2185,156.41,156.05,243.48]
[1751297466856,5.68202394,156.54,156.05,243.48]
[1751297467051,6.3512,156.53,156.29,26.24568121]
[1751297467255,26.24568121,156.52,156.29,602.90568121]
[1751297467557,26.24568121,156.48,156.29,576.66]
[1751297467754,124.0,156.52,156.27,26.24568121]
[1751297468060,576.38,156.72,156.43,26.24568121]
[1751297468360,10.73032654,156.71,156.59,26.24568121]
[1751297468655,2.1185,156.85,156.59,26.24568121]
[1751297468957,1.1108983,156.84,156.63,26.24568121]
[1751297469257,2.1185,156.85,156.66,26.24568121]
[1751297469455,28.36418121,156.85,156.63,602.62568121]
[1751297469659,2.1185,156.85,156.67,26.24568121]
[1751297469854,28.36418121,156.85,156.63,576.38]
[1751297470053,26.24568121,156.83,156.63,576.38]
[1751297470554,8.63943776,156.87,156.68,26.24568121]
[1751297470759,8.63943776,156.93,156.68,262.62]
[1751297470955,2.1122,157.02,156.68,243.36]
[1751297471157,26.24568121,156.91,156.66,243.08]
[1751297471359,575.72,156.94,156.66,26.24568121]
[1751297471558,26.24568121,156.88,156.64,243.08]
[1751297471855,26.24568121,156.84,156.63,576.38]
[1751297472064,26.24568121,156.76,156.55,575.72]
[1751297472450,26.24568121,156.58,156.35,113.18552483]
[1751297472654,2558.76,156.76,156.3,575.72]
[1751297472655,26.24568121,156.54,156.3,575.72]
[1751297472854,575.72,156.55,156.3,601.96568121]
[1751297473057,26.24568121,156.55,156.3,575.72]
[1751297473356,26.24568121,156.55,156.21,19.8]
[1751297473357,818.8,156.54,156.21,26.24568121]
[1751297473555,26.24568121,156.37,156.16,26.24568121]
[1751297473749,575.72,156.41,156.16,26.24568121]
[1751297473951,26.24568121,156.42,156.2,26.24568121]
[1751297474154,580.75602513,156.66,156.21,19.26]
[1751297474356,4.2777,156.62,156.09,12.81]
[1751297474555,4.2777,156.62,156.1,575.54]
[1751297474755,26.24568121,156.49,156.24,26.24568121]
[1751297474958,26.24568121,156.45,156.25,575.54]
[1751297475257,26.24568121,156.41,156.2,601.78568121]
[1751297475458,26.24568121,156.41,156.21,575.54]
[1751297475660,575.54,156.45,156.21,575.54]
[1751297475855,575.54,156.45,156.23,26.24568121]
[1751297476060,26.24568121,156.43,156.23,26.24568121]
[1751297476263,6.3918,156.42,156.21,575.54]
[1751297476458,26.24568121,156.39,156.21,575.54]
[1751297476766,26.24568121,156.39,156.23,6.3989]
[1751297476961,26.24568121,156.39,156.21,575.54]
[1751297477159,26.24568121,156.31,156.13,575.56]
[1751297477361,575.56,156.3,156.09,26.24568121]
[1751297477760,26.24568121,156.23,156.05,575.56]
[1751297477958,2.2546,156.29,156.05,575.56]
[1751297478157,2.2546,156.29,155.97,575.56]
[1751297478158,26.24568121,156.2,155.97,575.56]
[1751297478362,32.64818121,156.16,156.05,6.4066]
[1751297478558,575.56,156.26,156.01,26.24568121]
[1751297478764,26.24568121,156.35,156.13,26.24568121]
[1751297478968,575.56,156.39,156.17,26.24568121]
[1751297478969,31.78413486,156.38,156.17,26.24568121]
[1751297479165,579.9235,156.39,156.21,26.24568121]
[1751297479570,2.0994,156.44,156.17,575.56]
[1751297479867,575.76,156.43,156.17,575.56]
[1751297480059,26.24568121,156.35,156.13,26.24568121]
[1751297480261,26.24568121,156.31,156.13,26.24568121]
[1751297480557,26.24568121,156.37,156.13,26.24568121]
[1751297480761,26.24568121,156.37,156.17,26.24568121]
[1751297480960,26.24568121,156.38,156.09,575.76]
[1751297481162,26.24568121,156.38,156.15,26.24568121]
[1751297481773,26.24568121,156.38,156.16,26.24568121]
[1751297481970,6.3935,156.38,156.2,26.24568121]
[1751297482174,575.76,156.4,156.2,602.00568121]
[1751297482373,2.0994,156.44,156.2,575.76]
[1751297482578,26.24568121,156.42,156.2,575.76]
[1751297482775,26.24568121,156.38,156.2,575.76]
[1751297482973,2.0994,156.44,156.13,26.24568121]
[1751297482974,26.24568121,156.34,156.13,26.24568121]
[1751297483168,575.82,156.34,156.15,26.24568121]
[1751297483368,602.06568121,156.42,156.12,818.94]
[1751297483573,26.24568121,156.34,156.1,26.24568121]
[1751297483770,26.24568121,156.28,156.07,26.24568121]
[1751297483969,4.4783,156.33,156.15,26.24568121]
[1751297484173,2558.08,156.52,156.19,26.24568121]
[1751297484174,575.82,156.47,156.19,26.24568121]
[1751297484382,26.24568121,156.42,156.2,575.82]
[1751297484572,26.24568121,156.34,156.12,575.82]
[1751297484773,26.24568121,156.26,156.06,602.06568121]
[1751297484972,26.24568121,156.24,156.02,602.06568121]
[1751297485274,575.82,156.27,156.06,26.24568121]
[1751297485577,575.82,156.27,156.1,26.24568121]
[1751297485773,8.7121,156.32,156.14,26.24568121]
[1751297485978,6.511,156.32,156.18,26.24568121]
[1751297486171,26.24568121,156.31,155.34,17.93948388]
[1751297486377,26.24568121,156.23,155.97,575.88]
[1751297486580,26.24568121,156.19,155.98,26.24568121]
[1751297486777,26.24568121,156.19,155.97,575.88]
[1751297486984,2.2011,156.22,155.97,575.88]
[1751297487372,26.24568121,156.15,155.97,575.88]
[1751297487775,26.24568121,156.13,155.97,575.88]
[1751297488079,26.24568121,156.09,155.91,26.24568121]
[1751297488283,26.24568121,156.1,155.87,26.24568121]
[1751297488485,26.24568121,156.06,155.87,576.14]
[1751297488777,26.24568121,156.09,155.87,576.14]
[1751297489176,4.2045,156.13,155.9,26.24568121]
[1751297489477,4.2045,156.13,155.94,26.24568121]
[1751297489683,2.1053,156.13,156.07,6.4057]
[1751297490181,6.511,156.16,156.03,26.24568121]
[1751297490374,2.2011,156.22,156.03,26.24568121]
[1751297490679,26.24568121,156.18,155.95,26.24568121]
[1751297490886,7.41712513,156.22,155.93,576.14]
[1751297491080,26.24568121,156.14,155.93,845.64568121]
[1751297491386,6.4042,156.11,155.94,26.24568121]
[1751297491581,26.24568121,156.18,155.94,26.24568121]
[1751297491780,26.24568121,156.18,155.95,26.24568121]
[1751297491978,26.24568121,156.14,155.93,576.14]
[1751297492173,26.24568121,156.1,155.93,576.14]
[1751297492378,26.24568121,155.98,155.77,602.50568121]
[1751297492586,576.26,156.02,155.77,576.26]
[1751297492779,26.24568121,155.94,155.77,576.26]
[1751297492975,26.24568121,155.94,155.71,26.24568121]
[1751297493181,26.24568121,155.94,155.75,26.24568121]
[1751297493881,4.98178103,155.99,155.74,576.26]
[1751297494078,26.24568121,155.94,155.74,576.26]
[1751297494389,26.24568121,155.86,155.67,576.26]
[1751297494574,26.24568121,155.84,155.63,576.26]
[1751297494779,26.24568121,155.87,155.64,26.24568121]
[1751297494980,26.24568121,155.87,155.63,819.94]
[1751297495181,26.24568121,155.83,155.63,846.18568121]
[1751297495479,26.24568121,155.84,155.63,846.18568121]
[1751297496377,26.24568121,155.84,155.63,576.62]
[1751297496576,26.24568121,155.81,155.63,576.62]
[1751297496777,6.4207,155.71,155.63,576.62]
[1751297496983,26.24568121,155.77,155.58,243.46]
[1751297497279,26.24568121,155.81,155.62,26.24568121]
[1751297497487,4.91296226,155.87,155.66,26.24568121]
[1751297497674,6.511,155.92,155.7,26.24568121]
[1751297497880,26.24568121,155.89,155.71,243.46]
[1751297498186,26.24568121,155.85,155.67,576.62]
[1751297498791,26.24568121,155.81,155.67,576.62]
[1751297498985,6.4187,155.76,155.68,6.4217]
[1751297499179,26.24568121,155.81,155.67,576.62]
[1751297499484,26.24568121,155.77,155.56,577.0]
[1751297499687,26.24568121,155.73,155.56,577.0]
[1751297500383,2.2275,155.76,155.56,577.0]
[1751297500582,28.47318121,155.76,155.56,577.0]
[1751297500983,26.24568121,155.72,155.56,577.0]
[1751297501183,26.24568121,155.65,155.44,603.60568121]
[1751297501481,603.60568121,155.65,155.44,577.36]
[1751297501686,26.24568121,155.57,155.35,577.36]
[1751297501882,26.24568121,155.53,155.1,64.4562]
[1751297502084,26.24568121,155.44,155.23,26.24568121]
[1751297502289,26.24568121,155.42,155.23,577.36]
[1751297502489,26.24568121,155.38,155.17,26.24568121]
[1751297502790,26.24568121,155.36,155.14,577.36]
[1751297502978,26.24568121,155.28,155.06,861.91872568]
[1751297503177,577.36,155.35,154.79,19.3754]
[1751297503178,26.24568121,155.2,154.97,577.36]
[1751297503377,26.24568121,155.21,154.94,577.36]
[1751297503586,26.24568121,155.24,155.06,26.24568121]
[1751297503889,26.24568121,155.24,154.95,821.14]
[1751297503890,26.24568121,155.27,155.03,270.30568121]
[1751297504090,26.24568121,155.27,155.04,244.06]
[1751297504284,577.36,155.29,154.95,577.36]
[1751297504484,6.4486,155.04,154.95,577.36]
[1751297504681,597.16,155.29,154.95,577.36]
[1751297504682,604.26568121,155.16,154.95,577.36]
[1751297504887,26.24568121,155.16,154.95,577.36]
[1751297505684,26.24568121,155.12,154.95,577.36]
[1751297505986,578.02,155.18,154.95,603.60568121]
[1751297506187,26.24568121,155.15,154.97,26.24568121]
[1751297506486,26.24568121,155.15,154.95,577.36]
[1751297506686,578.02,155.18,154.87,578.74]
[1751297506887,26.24568121,155.09,154.87,849.34568121]
[1751297507185,26.24568121,154.99,154.86,113.49952055]
[1751297507390,26.24568121,154.89,154.67,26.24568121]
[1751297507596,26.24568121,154.85,154.66,578.74]
[1751297507783,26.24568121,154.9,154.67,270.60568121]
[1751297508086,26.24568121,154.87,154.66,578.74]
[1751297508390,578.74,154.92,154.67,578.74]
[1751297508590,26.24568121,154.9,154.68,849.34568121]
[1751297508778,26.24568121,154.9,154.68,26.24568121]
[1751297508985,26.24568121,154.92,154.72,26.24568121]
[1751297509184,6.511,154.96,154.6,2572.18]
[1751297509384,26.24568121,154.87,154.64,26.24568121]
[1751297509586,26.24568121,154.8,154.61,579.5]
[1751297509778,26.24568121,154.86,154.66,26.24568121]
[1751297509984,6.511,154.96,154.7,26.24568121]
[1751297510178,2.2839,154.97,154.77,26.24568121]
[1751297510384,4.3664,154.98,154.66,26.24568121]
[1751297510385,4.3664,154.98,154.85,26.24568121]
[1751297510585,605.74568121,155.05,154.85,26.24568121]
[1751297510781,579.5,155.05,154.85,26.24568121]
[1751297510985,26.24568121,155.1,154.89,26.24568121]
[1751297511388,6.511,155.12,154.93,26.24568121]
[1751297511696,6.511,155.12,154.83,244.68]
[1751297511697,26.24568121,154.95,154.73,114.92173382]
[1751297511992,605.74568121,154.94,154.73,114.92173382]
[1751297512187,579.5,154.93,154.73,114.92173382]
[1751297512794,579.5,154.93,154.75,26.24568121]
[1751297513090,4.2887,154.94,154.73,114.92173382]
[1751297513289,579.92,155.01,154.81,26.24568121]
[1751297513489,579.92,155.01,154.82,26.24568121]
[1751297513885,579.92,155.01,154.93,6.4528]
[1751297514099,4.3408,155.08,154.73,114.92173382]
[1751297514100,26.24568121,155.14,154.91,579.92]
[1751297514291,26.24568121,155.14,154.91,26.24568121]
[1751297514496,26.24568121,155.1,154.9,579.92]
[1751297514697,1.12290665,155.09,154.9,579.92]
[1751297514896,244.86,155.15,154.9,579.92]
[1751297514897,26.24568121,155.13,154.93,26.24568121]
[1751297515698,6.4459,155.1,154.93,26.24568121]
[1751297515896,26.24568121,155.13,154.9,579.92]
[1751297516097,26.24568121,155.12,154.9,579.92]
[1751297516501,6.4485,155.04,154.9,579.92]
[1751297516994,26.24568121,155.14,154.94,26.24568121]
[1751297517197,579.92,155.17,154.94,26.24568121]
[1751297517496,6.4443,155.14,154.98,26.24568121]
[1751297517693,26.24568121,155.14,154.95,244.96]
[1751297517897,26.24568121,155.02,154.82,580.16]
[1751297518097,26.24568121,154.98,154.77,26.24568121]
[1751297518400,606.40568121,154.98,154.77,26.24568121]
[1751297518793,249.2515,155.0,154.85,26.24568121]
[1751297518794,2.1847,155.0,154.85,26.24568121]
[1751297518997,6.511,155.05,154.85,606.52568121]
[1751297519196,26.24568121,155.11,154.89,26.24568121]
[1751297519796,26.24568121,155.11,154.93,26.24568121]
[1751297520193,26.24568121,155.11,154.9,26.24568121]
[1751297520394,26.24568121,155.08,154.86,26.24568121]
[1751297520603,26.24568121,154.93,154.72,26.24568121]
[1751297520799,26.24568121,154.89,154.69,26.24568121]
[1751297521095,26.24568121,155.0,154.77,26.24568121]
[1751297521400,26.24568121,154.88,154.48,2579.1]
[1751297521601,26.24568121,154.86,154.65,26.24568121]
[1751297521897,245.14,154.94,154.69,26.24568121]
[1751297522094,851.98568121,154.94,154.73,26.24568121]
[1751297522294,825.74,154.94,154.77,26.24568121]
[1751297522596,825.74,154.94,154.54,13.0199]
[1751297522597,26.24568121,154.78,154.47,26.24568121]
[1751297522800,26.24568121,154.88,154.47,26.24568121]
[1751297522801,6.4667,154.6,154.47,26.24568121]
[1751297523094,26.24568121,154.61,154.42,580.6]
[1751297523294,26.24568121,154.66,154.32,642.6]
[1751297523500,26.24568121,154.55,154.34,26.24568121]
[1751297523692,580.6,154.57,154.38,26.24568121]
[1751297524395,26.24568121,154.54,154.33,580.6]
[1751297524595,580.6,154.57,154.28,26.24568121]
[1751297524800,26.24568121,154.49,154.36,6.4767]
[1751297525096,26.24568121,154.49,154.28,26.24568121]
[1751297525492,26.24568121,154.48,154.28,26.24568121]
[1751297526002,26.24568121,154.4,154.25,580.6]
[1751297526496,26.24568121,154.36,154.17,581.18]
[1751297526698,26.24568121,154.28,154.09,581.18]
[1751297526899,26.24568121,154.3,154.09,581.18]
[1751297527197,4.3079,154.39,154.21,26.24568121]
[1751297527400,26.24568121,154.5,154.29,26.24568121]
[1751297527595,2583.1,154.69,154.33,26.24568121]
[1751297527596,26.24568121,154.54,154.33,26.24568121]
[1751297527795,26.24568121,154.58,154.34,581.88]
[1751297527995,581.88,154.6,154.34,581.88]
[1751297527996,26.24568121,154.52,154.34,581.88]
[1751297528200,26.24568121,154.48,154.26,581.88]
[1751297528398,26.24568121,154.44,154.26,581.88]
[1751297528700,581.88,154.48,154.26,581.88]
[1751297528901,26.24568121,154.46,154.26,581.88]
[1751297529300,26.24568121,154.41,154.01,2586.2]
[1751297529497,26.24568121,154.27,154.04,26.24568121]
[1751297529803,26.24568121,154.29,154.05,245.68]
[1751297530001,26.24568121,154.29,154.08,26.24568121]
[1751297530195,26.24568121,154.29,154.09,581.88]
[1751297530793,26.24568121,154.25,154.09,581.88]
[1751297531396,26.24568121,154.21,154.09,581.88]
[1751297531701,26.24568121,154.21,154.01,582.4]
[1751297531996,26.24568121,154.16,154.0,582.4]
[1751297532302,582.4,154.22,153.96,272.14568121]
[1751297532303,26.24568121,154.2,153.96,272.14568121]
[1751297532499,26.24568121,154.2,153.93,582.4]
[1751297532500,26.24568121,154.2,154.0,26.24568121]
[1751297532897,26.24568121,154.2,153.97,26.24568121]
[1751297533096,245.9,154.21,153.81,12.9996]
[1751297533302,26.24568121,154.08,153.86,582.4]
[1751297533503,26.24568121,153.97,153.69,13.0093]
[1751297533803,26.24568121,153.97,153.64,19.5209]
[1751297533804,26.24568121,153.97,153.7,582.4]
[1751297534099,26.24568121,153.93,153.81,1.13095335]
[1751297534300,26.24568121,153.89,153.7,582.4]
[1751297534604,582.84,153.96,153.77,115.54661749]
[1751297534805,26.24568121,153.98,153.77,115.54661749]
[1751297535099,26.24568121,153.98,153.89,6.4963]
[1751297535304,582.84,154.05,153.77,115.54661749]
[1751297535305,582.84,154.05,153.8,609.08568121]
[1751297535494,26.24568121,153.98,153.8,582.84]
[1751297535696,26.24568121,154.0,153.77,1.13121069]
[1751297535900,26.24568121,153.79,153.57,26.24568121]
[1751297536096,26.24568121,153.79,153.55,582.84]
[1751297536097,582.84,153.83,153.66,1.13203865]
[1751297536305,26.24568121,153.79,153.58,26.24568121]
[1751297536500,26.24568121,153.82,153.59,609.64568121]
[1751297536695,26.24568121,153.8,153.65,1.13227806]
[1751297537006,26.24568121,153.72,153.6,583.4]
[1751297537306,26.24568121,153.72,153.53,583.4]
[1751297537505,4.6029,153.84,153.6,1.13259129]
[1751297537703,30.84858121,153.84,153.76,6.502]
[1751297537906,4.6029,153.84,153.68,583.4]
[1751297538105,583.4,154.07,153.78,26.24568121]
[1751297538310,26.24568121,153.96,153.79,583.4]
[1751297538602,26.24568121,153.88,153.68,583.4]
[1751297538802,26.24568121,153.89,153.69,26.24568121]
[1751297539004,26.24568121,153.85,153.68,583.4]
[1751297539206,6.4994,153.83,153.72,6.5037]
[1751297539508,4.3244,153.88,153.69,26.24568121]
[1751297539802,26.24568121,153.86,153.64,26.24568121]
[1751297540012,583.92,154.01,153.65,246.54]
[1751297540207,583.92,154.01,153.74,26.24568121]
[1751297540407,610.16568121,154.01,153.78,26.24568121]
[1751297540714,4.3244,154.05,153.86,26.24568121]
[1751297541004,2.2955,154.16,153.9,26.24568121]
[1751297541204,26.24568121,154.19,153.98,26.24568121]
[1751297541406,4.4526,154.21,154.02,26.24568121]
[1751297541605,4.4526,154.21,154.03,583.92]
[1751297541810,7.21523395,154.84,154.03,583.92]
[1751297542116,75.38075092,154.87,154.14,26.24568121]
[1751297542117,26.24568121,154.35,154.14,26.24568121]
[1751297542411,4.4526,154.37,154.15,583.92]
[1751297542412,26.24568121,154.32,154.15,583.92]
[1751297543011,30.69828121,154.37,154.15,610.16568121]
[1751297543204,26.24568121,154.34,154.15,583.92]
[1751297543404,26.24568121,154.3,154.15,583.92]
[1751297543607,26.24568121,154.33,154.15,583.92]
[1751297543914,26.24568121,154.44,154.22,26.24568121]
[1751297544611,26.24568121,154.46,154.22,26.24568121]
[1751297545118,26.24568121,154.42,154.22,26.24568121]
[1751297545610,26.24568121,154.38,154.15,610.16568121]
[1751297545813,6.479,154.31,154.15,610.16568121]
[1751297546010,26.24568121,154.36,154.15,610.16568121]
[1751297546215,26.24568121,154.32,154.15,583.92]
[1751297546711,609.88568121,154.32,154.15,583.92]
[1751297546917,26.24568121,154.28,154.15,583.92]
[1751297547111,26.24568121,154.28,154.07,583.64]
[1751297547417,26.24568121,154.24,154.07,583.64]
[1751297547613,26.24568121,154.29,154.07,583.64]
[1751297547813,6.4839,154.19,154.1,6.4873]
[1751297548014,26.24568121,154.29,154.1,6.4873]